[Event "Betsys MČR v online bleskovém šachu 2021"]
[Site "Chess.com"]
[Date "2021.04.17"]
[Round "11"]
[White "RadosC"]
[Black "karimaster100"]
[Result "0-1"]
[WhiteElo "2484"]
[BlackElo "2314"]
[TimeControl "180+1"]
[EndTime "10:51:38 PDT"]
[Termination "Uživatel karimaster100 zvítězil po vzdání soupeře"]

1. e4 {[%clk 0:03:00.9]} 1... c5 {[%clk 0:03:00.1]} 2. Nf3 {[%clk 0:03:00.2]}
2... d6 {[%clk 0:03:00.6]} 3. d4 {[%clk 0:02:59.8]} 3... cxd4 {[%clk 0:03:01.1]}
4. Nxd4 {[%clk 0:03:00.6]} 4... Nf6 {[%clk 0:03:01.4]} 5. Nc3 {[%clk 0:03:01.2]}
5... a6 {[%clk 0:03:00.5]} 6. h3 {[%clk 0:03:01.3]} 6... e6 {[%clk 0:03:00.1]}
7. g4 {[%clk 0:03:00.8]} 7... d5 {[%clk 0:03:00.5]} 8. exd5 {[%clk 0:03:00.9]}
8... Nxd5 {[%clk 0:02:59.7]} 9. Nde2 {[%clk 0:03:01.6]} 9... Bb4 {[%clk
0:02:59.4]} 10. Bd2 {[%clk 0:03:02]} 10... Nxc3 {[%clk 0:02:57]} 11. Nxc3 {[%clk
0:02:58.9]} 11... O-O {[%clk 0:02:55.8]} 12. Bg2 {[%clk 0:02:58.6]} 12... Qc7
{[%clk 0:02:54.4]} 13. O-O {[%clk 0:02:56.3]} 13... Bd7 {[%clk 0:02:52.3]} 14.
a3 {[%clk 0:02:54.3]} 14... Be7 {[%clk 0:02:50.2]} 15. Qe2 {[%clk 0:02:48.2]}
15... Bc6 {[%clk 0:02:49.5]} 16. Ne4 {[%clk 0:02:48]} 16... Nd7 {[%clk
0:02:46.3]} 17. Bc3 {[%clk 0:02:46.9]} 17... Rad8 {[%clk 0:02:36.9]} 18. Rfd1
{[%clk 0:02:45.1]} 18... Nc5 {[%clk 0:02:15.9]} 19. Nxc5 {[%clk 0:02:39.8]}
19... Bxc5 {[%clk 0:02:12.4]} 20. Qe5 {[%clk 0:02:34.5]} 20... Qxe5 {[%clk
0:02:09.7]} 21. Bxe5 {[%clk 0:02:34.4]} 21... Bxg2 {[%clk 0:02:05.9]} 22. Kxg2
{[%clk 0:02:34.1]} 22... f6 {[%clk 0:02:03.1]} 23. Bg3 {[%clk 0:02:26.3]} 23...
e5 {[%clk 0:01:54.6]} 24. Kf3 {[%clk 0:02:25.3]} 24... Kf7 {[%clk 0:01:53.5]}
25. Ke4 {[%clk 0:02:25]} 25... Ke6 {[%clk 0:01:49.9]} 26. f4 {[%clk 0:02:24.3]}
26... exf4 {[%clk 0:01:48.7]} 27. Bxf4 {[%clk 0:02:23.6]} 27... g6 {[%clk
0:01:27.4]} 28. b4 {[%clk 0:02:16.7]} 28... Be7 {[%clk 0:01:23.5]} 29. c4 {[%clk
0:02:15.3]} 29... Rxd1 {[%clk 0:01:19.7]} 30. Rxd1 {[%clk 0:02:14.3]} 30... Rd8
{[%clk 0:01:19.9]} 31. Re1 {[%clk 0:02:08]} 31... h5 {[%clk 0:00:55.6]} 32. gxh5
{[%clk 0:01:50.7]} 32... g5 {[%clk 0:00:54.7]} 33. Bc1 {[%clk 0:01:39.5]} 33...
Rh8 {[%clk 0:00:54.8]} 34. Kd4+ {[%clk 0:01:33.6]} 34... Kd7 {[%clk 0:00:51.9]}
35. Kd5 {[%clk 0:01:18.6]} 35... Rxh5 {[%clk 0:00:50.5]} 36. Rd1 {[%clk
0:01:06.3]} 36... Rxh3 {[%clk 0:00:46.7]} 37. Ke4+ {[%clk 0:01:06.4]} 37... Ke6
{[%clk 0:00:46.6]} 38. c5 {[%clk 0:01:06.4]} 38... f5+ {[%clk 0:00:45.1]} 39.
Kd4 {[%clk 0:01:06.4]} 39... f4 {[%clk 0:00:42.1]} 40. Ke4 {[%clk 0:01:05]}
40... Rh2 {[%clk 0:00:35.7]} 41. Kf3 {[%clk 0:00:54.4]} 41... Bf6 {[%clk
0:00:24.6]} 42. Rd6+ {[%clk 0:00:48.8]} 42... Kf5 {[%clk 0:00:24.6]} 43. Rd5+
{[%clk 0:00:48.7]} 43... Be5 {[%clk 0:00:24.6]} 44. Bxf4 {[%clk 0:00:28.4]}
44... gxf4 {[%clk 0:00:21.4]} 45. Rd7 {[%clk 0:00:26.3]} 45... Rh3+ {[%clk
0:00:21.5]} 46. Ke2 {[%clk 0:00:24.1]} 46... Ke4 {[%clk 0:00:20.7]} 47. Rxb7
{[%clk 0:00:23.1]} 47... f3+ {[%clk 0:00:20.8]} 48. Kd2 {[%clk 0:00:20.4]} 48...
Rh1 {[%clk 0:00:17.2]} 49. Rf7 {[%clk 0:00:18.2]} 49... Bd4 {[%clk 0:00:10.6]}
50. c6 {[%clk 0:00:17.3]} 50... f2 {[%clk 0:00:09.8]} 51. c7 {[%clk 0:00:16.5]}
51... Rh8 {[%clk 0:00:09.9]} 52. Ke2 {[%clk 0:00:15.6]} 52... Rc8 {[%clk
0:00:09.8]} 53. Re7+ {[%clk 0:00:14.8]} 53... Kd5 {[%clk 0:00:09.1]} 54. Rf7
{[%clk 0:00:15.1]} 54... Kc6 {[%clk 0:00:08.5]} 55. Kd3 {[%clk 0:00:15.4]} 55...
Bb6 {[%clk 0:00:08.8]} 56. Rf6+ {[%clk 0:00:13.9]} 56... Kb7 {[%clk 0:00:08.4]}
57. a4 {[%clk 0:00:12.7]} 57... Rxc7 {[%clk 0:00:08.4]} 58. a5 {[%clk 0:00:13]}
58... Ba7 {[%clk 0:00:08.9]} 59. b5 {[%clk 0:00:12]} 59... axb5 {[%clk
0:00:08.3]} 60. a6+ {[%clk 0:00:12.9]} 60... Kb8 {[%clk 0:00:07.3]} 61. Rf8+
{[%clk 0:00:12.8]} 61... Rc8 {[%clk 0:00:07.5]} 62. Rf7 {[%clk 0:00:13.1]} 62...
Ka8 {[%clk 0:00:06.8]} 63. Rf6 {[%clk 0:00:12.1]} 63... Bc5 {[%clk 0:00:05.8]}
64. Rf7 {[%clk 0:00:11.5]} 64... b4 {[%clk 0:00:04.6]} 65. Kc4 {[%clk
0:00:11.6]} 65... b3 {[%clk 0:00:04.3]} 66. Kxb3 {[%clk 0:00:11.7]} 66... Re8
{[%clk 0:00:03.8]} 67. Kc4 {[%clk 0:00:11.4]} 67... Re1 {[%clk 0:00:03.8]} 68.
Kxc5 {[%clk 0:00:07.9]} 68... f1=Q {[%clk 0:00:03.8]} 69. Rxf1 {[%clk
0:00:07.8]} 69... Rxf1 {[%clk 0:00:03.9]} 70. Kb6 {[%clk 0:00:08.7]} 70... Rf6+
{[%clk 0:00:03.4]} 71. Kc7 {[%clk 0:00:08.1]} 71... Ka7 {[%clk 0:00:03.7]} 72.
Kd7 {[%clk 0:00:08.1]} 72... Kxa6 {[%clk 0:00:04.1]} 73. Ke7 {[%clk 0:00:09]}
73... Rf2 {[%clk 0:00:04]} 0-1

[Event "Betsys MČR v online bleskovém šachu 2021"]
[Site "Chess.com"]
[Date "2021.04.17"]
[Round "11"]
[White "fadamos"]
[Black "florenc1330"]
[Result "1-0"]
[WhiteElo "2309"]
[BlackElo "2117"]
[TimeControl "180+1"]
[EndTime "10:51:48 PDT"]
[Termination "Uživatel fadamos zvítězil na čas"]

1. e4 {[%clk 0:03:00.7]} 1... d5 {[%clk 0:02:59.2]} 2. exd5 {[%clk 0:03:00.8]}
2... Qxd5 {[%clk 0:02:59.1]} 3. Nc3 {[%clk 0:03:01.3]} 3... Qa5 {[%clk
0:02:58.5]} 4. d4 {[%clk 0:03:01.2]} 4... Nf6 {[%clk 0:02:58.5]} 5. Bc4 {[%clk
0:02:59.5]} 5... Bg4 {[%clk 0:02:58]} 6. Ne2 {[%clk 0:02:56.5]} 6... Nc6 {[%clk
0:02:56.8]} 7. f3 {[%clk 0:02:52.2]} 7... Bh5 {[%clk 0:02:56]} 8. Bd2 {[%clk
0:02:52.3]} 8... O-O-O {[%clk 0:02:54.6]} 9. d5 {[%clk 0:02:33.2]} 9... Ne5
{[%clk 0:02:40.9]} 10. Bb3 {[%clk 0:02:21.7]} 10... e6 {[%clk 0:02:24.9]} 11.
O-O {[%clk 0:01:49]} 11... exd5 {[%clk 0:02:19.2]} 12. Kh1 {[%clk 0:01:44.6]}
12... d4 {[%clk 0:02:09.5]} 13. Ne4 {[%clk 0:01:36.4]} 13... Qb6 {[%clk
0:02:07.6]} 14. Nxf6 {[%clk 0:01:19.7]} 14... gxf6 {[%clk 0:02:06.9]} 15. Ng3
{[%clk 0:01:15.5]} 15... Bg6 {[%clk 0:02:04.6]} 16. f4 {[%clk 0:01:08.8]} 16...
d3 {[%clk 0:01:42.6]} 17. fxe5 {[%clk 0:01:00.6]} 17... dxc2 {[%clk 0:01:40.3]}
18. Bxc2 {[%clk 0:00:58.7]} 18... Bh6 {[%clk 0:01:38]} 19. Qg4+ {[%clk
0:00:53.9]} 19... f5 {[%clk 0:01:36]} 20. Bxf5+ {[%clk 0:00:45.6]} 20... Kb8
{[%clk 0:01:32.5]} 21. Bxh6 {[%clk 0:00:44.4]} 21... Bxf5 {[%clk 0:01:32.3]} 22.
Nxf5 {[%clk 0:00:44.7]} 22... Rhg8 {[%clk 0:01:32.1]} 23. Bg7 {[%clk 0:00:44.1]}
23... Qxb2 {[%clk 0:01:29.5]} 24. Rad1 {[%clk 0:00:42.4]} 24... Rxd1 {[%clk
0:01:26.6]} 25. Rxd1 {[%clk 0:00:42.3]} 25... a6 {[%clk 0:01:25.2]} 26. a4
{[%clk 0:00:40.2]} 26... Qc2 {[%clk 0:01:23.3]} 27. h3 {[%clk 0:00:38.6]} 27...
Re8 {[%clk 0:01:18.4]} 28. Bf6 {[%clk 0:00:33.6]} 28... Ka7 {[%clk 0:01:12.2]}
29. Qd4+ {[%clk 0:00:33]} 29... b6 {[%clk 0:01:10.7]} 30. Ne3 {[%clk 0:00:33.2]}
30... Qc6 {[%clk 0:01:03.2]} 31. Nd5 {[%clk 0:00:33.4]} 31... Rg8 {[%clk
0:00:59.6]} 32. a5 {[%clk 0:00:30.4]} 32... Kb7 {[%clk 0:00:54.8]} 33. axb6
{[%clk 0:00:29.6]} 33... cxb6 {[%clk 0:00:55.3]} 34. Rb1 {[%clk 0:00:28.8]}
34... b5 {[%clk 0:00:54.2]} 35. Rd1 {[%clk 0:00:20.9]} 35... a5 {[%clk
0:00:46.3]} 36. Ne3 {[%clk 0:00:20.6]} 36... b4 {[%clk 0:00:41.9]} 37. Qd7+
{[%clk 0:00:14]} 37... Qxd7 {[%clk 0:00:41.8]} 38. Rxd7+ {[%clk 0:00:14.9]}
38... Kc6 {[%clk 0:00:42.3]} 39. Rd6+ {[%clk 0:00:15.2]} 39... Kc5 {[%clk
0:00:39.8]} 40. Rd5+ {[%clk 0:00:15.2]} 40... Kb6 {[%clk 0:00:37.5]} 41. Bd8+
{[%clk 0:00:15.3]} 41... Kc6 {[%clk 0:00:32.2]} 42. Bxa5 {[%clk 0:00:14.8]}
42... b3 {[%clk 0:00:31.1]} 43. Rd3 {[%clk 0:00:13.8]} 43... Rb8 {[%clk
0:00:26.7]} 44. Nd1 {[%clk 0:00:08.9]} 44... b2 {[%clk 0:00:24.2]} 45. Nxb2
{[%clk 0:00:09.1]} 45... Rxb2 {[%clk 0:00:24.1]} 46. Kh2 {[%clk 0:00:09.4]}
46... Ra2 {[%clk 0:00:22.7]} 47. Bc3 {[%clk 0:00:09.4]} 47... Re2 {[%clk
0:00:21.6]} 48. Rf3 {[%clk 0:00:09.5]} 48... Rc2 {[%clk 0:00:19.1]} 49. Bd4
{[%clk 0:00:09.5]} 49... Kd5 {[%clk 0:00:19]} 50. Ba1 {[%clk 0:00:09.9]} 50...
Ke6 {[%clk 0:00:18.8]} 51. Ra3 {[%clk 0:00:10.2]} 51... Rc6 {[%clk 0:00:17.4]}
52. Ra8 {[%clk 0:00:10]} 52... h5 {[%clk 0:00:15.8]} 53. Kg3 {[%clk 0:00:10.1]}
53... Rb6 {[%clk 0:00:13.5]} 54. Kh4 {[%clk 0:00:10.2]} 54... Rb3 {[%clk
0:00:08.7]} 55. Kxh5 {[%clk 0:00:09.9]} 55... Rg3 {[%clk 0:00:08.5]} 56. Ra2
{[%clk 0:00:08.6]} 56... Kf5 {[%clk 0:00:07.5]} 57. Kh4 {[%clk 0:00:09]} 57...
Rg8 {[%clk 0:00:06.6]} 58. g4+ {[%clk 0:00:09.2]} 58... Ke6 {[%clk 0:00:06.6]}
59. Rf2 {[%clk 0:00:09.3]} 59... Rh8+ {[%clk 0:00:06.6]} 60. Kg3 {[%clk
0:00:09]} 60... Ra8 {[%clk 0:00:06.7]} 61. Rf6+ {[%clk 0:00:09.5]} 61... Ke7
{[%clk 0:00:07]} 62. Bd4 {[%clk 0:00:08.6]} 62... Ra4 {[%clk 0:00:06.5]} 63.
Bc5+ {[%clk 0:00:08.5]} 63... Ke8 {[%clk 0:00:06.4]} 64. Kh4 {[%clk 0:00:08.5]}
64... Rc4 {[%clk 0:00:07]} 65. Bd6 {[%clk 0:00:08.1]} 65... Re4 {[%clk
0:00:06.2]} 66. Kg5 {[%clk 0:00:08.2]} 66... Re3 {[%clk 0:00:05.7]} 67. h4
{[%clk 0:00:08.6]} 67... Rg3 {[%clk 0:00:05.6]} 68. h5 {[%clk 0:00:08.9]} 68...
Rh3 {[%clk 0:00:06.1]} 69. h6 {[%clk 0:00:09.1]} 69... Rh2 {[%clk 0:00:06.2]}
70. Rf3 {[%clk 0:00:09.3]} 70... Rh1 {[%clk 0:00:05.1]} 71. Ra3 {[%clk
0:00:09.3]} 71... Kd7 {[%clk 0:00:04.4]} 72. Ra7+ {[%clk 0:00:09.7]} 72... Ke6
{[%clk 0:00:04.7]} 73. Re7+ {[%clk 0:00:10]} 73... Kd5 {[%clk 0:00:04.9]} 74.
Rxf7 {[%clk 0:00:10.5]} 74... Rh2 {[%clk 0:00:03.9]} 75. h7 {[%clk 0:00:10.6]}
75... Ke6 {[%clk 0:00:03.8]} 76. Rf6+ {[%clk 0:00:10.6]} 76... Kd7 {[%clk
0:00:03.3]} 77. Kg6 {[%clk 0:00:11.1]} 77... Ke8 {[%clk 0:00:02.4]} 78. Kg7
{[%clk 0:00:11.2]} 1-0

[Event "Betsys MČR v online bleskovém šachu 2021"]
[Site "Chess.com"]
[Date "2021.04.17"]
[Round "11"]
[White "sachmaty8"]
[Black "CZpeeeter"]
[Result "1-0"]
[WhiteElo "1833"]
[BlackElo "1699"]
[TimeControl "180+1"]
[EndTime "10:53:35 PDT"]
[Termination "Uživatel sachmaty8 zvítězil na čas"]

1. e4 {[%clk 0:03:00.9]} 1... e5 {[%clk 0:02:54.6]} 2. Nf3 {[%clk 0:02:59.8]}
2... Nc6 {[%clk 0:02:54]} 3. Bb5 {[%clk 0:03:00.1]} 3... Nge7 {[%clk 0:02:53.3]}
4. O-O {[%clk 0:02:57.2]} 4... g6 {[%clk 0:02:52.8]} 5. c3 {[%clk 0:02:51.1]}
5... Bg7 {[%clk 0:02:52.6]} 6. d4 {[%clk 0:02:51]} 6... exd4 {[%clk 0:02:42.7]}
7. cxd4 {[%clk 0:02:49.3]} 7... O-O {[%clk 0:02:42.9]} 8. Nc3 {[%clk 0:02:46.3]}
8... a6 {[%clk 0:02:39.6]} 9. Bc4 {[%clk 0:02:45.7]} 9... d6 {[%clk 0:02:37.6]}
10. Ng5 {[%clk 0:02:44.3]} 10... h6 {[%clk 0:02:31]} 11. Nf3 {[%clk 0:02:20.7]}
11... Bg4 {[%clk 0:02:25.6]} 12. Be3 {[%clk 0:02:18.4]} 12... Kh7 {[%clk
0:02:19.7]} 13. h3 {[%clk 0:01:54.6]} 13... Bxf3 {[%clk 0:02:18.9]} 14. Qxf3
{[%clk 0:01:55.5]} 14... f5 {[%clk 0:02:03.8]} 15. d5 {[%clk 0:01:16]} 15... Ne5
{[%clk 0:02:00.2]} 16. Qe2 {[%clk 0:01:16.4]} 16... fxe4 {[%clk 0:01:52.3]} 17.
Nxe4 {[%clk 0:01:14.8]} 17... Nf5 {[%clk 0:01:41.8]} 18. Rac1 {[%clk 0:00:58.6]}
18... Qe7 {[%clk 0:01:04.4]} 19. Rfe1 {[%clk 0:00:29.2]} 19... Nxe3 {[%clk
0:00:58.3]} 20. Qxe3 {[%clk 0:00:28.3]} 20... Nxc4 {[%clk 0:00:43.3]} 21. Rxc4
{[%clk 0:00:29.2]} 21... Bxb2 {[%clk 0:00:42.8]} 22. Rb1 {[%clk 0:00:16.3]}
22... Be5 {[%clk 0:00:40.1]} 23. Rxb7 {[%clk 0:00:14.4]} 23... Bf4 {[%clk
0:00:40.2]} 24. Qd3 {[%clk 0:00:11.1]} 24... Rab8 {[%clk 0:00:36]} 25. Rbxc7
{[%clk 0:00:09.9]} 25... Rf7 {[%clk 0:00:26.7]} 26. Rxe7 {[%clk 0:00:08.8]}
26... Rxe7 {[%clk 0:00:27]} 27. g3 {[%clk 0:00:09.3]} 27... Be5 {[%clk
0:00:23.8]} 28. Qc2 {[%clk 0:00:08.7]} 28... Rb5 {[%clk 0:00:22.7]} 29. Rc7
{[%clk 0:00:08.1]} 29... Rg7 {[%clk 0:00:21.8]} 30. Rxg7+ {[%clk 0:00:07.5]}
30... Bxg7 {[%clk 0:00:21.1]} 31. Nxd6 {[%clk 0:00:06.9]} 31... Rxd5 {[%clk
0:00:20.6]} 32. Ne4 {[%clk 0:00:07.2]} 32... Re5 {[%clk 0:00:20.5]} 33. Qc4
{[%clk 0:00:07]} 33... Re7 {[%clk 0:00:19.7]} 34. Nd6 {[%clk 0:00:07]} 34... Rd7
{[%clk 0:00:18.9]} 35. Ne4 {[%clk 0:00:06.6]} 35... Re7 {[%clk 0:00:18.7]} 36.
Nd2 {[%clk 0:00:05.7]} 36... Rd7 {[%clk 0:00:18.6]} 37. Nf3 {[%clk 0:00:05.9]}
37... Rf7 {[%clk 0:00:17.7]} 38. Kg2 {[%clk 0:00:06.8]} 38... Re7 {[%clk
0:00:17.5]} 39. Qc5 {[%clk 0:00:06.6]} 39... Rf7 {[%clk 0:00:16.3]} 40. Qb6
{[%clk 0:00:06.9]} 40... Rf6 {[%clk 0:00:16]} 41. Qa7 {[%clk 0:00:07]} 41... Rd6
{[%clk 0:00:14.3]} 42. a4 {[%clk 0:00:07.1]} 42... Re6 {[%clk 0:00:13.7]} 43.
Qb7 {[%clk 0:00:07.4]} 43... Rd6 {[%clk 0:00:13.4]} 44. Qf7 {[%clk 0:00:07.7]}
44... Rf6 {[%clk 0:00:13.1]} 45. Qe7 {[%clk 0:00:07.5]} 45... Rc6 {[%clk
0:00:12.5]} 46. h4 {[%clk 0:00:07.8]} 46... Rf6 {[%clk 0:00:11.8]} 47. h5 {[%clk
0:00:08]} 47... g5 {[%clk 0:00:11.2]} 48. Qe4+ {[%clk 0:00:07.7]} 48... Kh8
{[%clk 0:00:11.1]} 49. Ne5 {[%clk 0:00:07.8]} 49... Kg8 {[%clk 0:00:07.8]} 50.
Ng6 {[%clk 0:00:07.8]} 50... Rf7 {[%clk 0:00:07.1]} 51. Qe8+ {[%clk 0:00:07.6]}
51... Bf8 {[%clk 0:00:06.5]} 52. Qe6 {[%clk 0:00:06.9]} 52... Kg7 {[%clk
0:00:05.8]} 53. Ne5 {[%clk 0:00:05.7]} 53... Rf6 {[%clk 0:00:04.3]} 54. Qd7+
{[%clk 0:00:05.7]} 54... Kg8 {[%clk 0:00:04.2]} 55. Qd5+ {[%clk 0:00:04.7]}
55... Kg7 {[%clk 0:00:03.7]} 56. Ng6 {[%clk 0:00:05.6]} 56... Rf7 {[%clk
0:00:03.3]} 57. Qe5+ {[%clk 0:00:05.4]} 57... Rf6 {[%clk 0:00:03.4]} 58. Qc7+
{[%clk 0:00:05]} 58... Kg8 {[%clk 0:00:02.6]} 59. Qa5 {[%clk 0:00:05.7]} 59...
Kg7 {[%clk 0:00:02.3]} 60. Qb4 {[%clk 0:00:06]} 60... Bxb4 {[%clk 0:00:01.4]}
61. Ne5 {[%clk 0:00:05.8]} 61... a5 {[%clk 0:00:01.9]} 62. Nd3 {[%clk
0:00:06.7]} 62... Bc3 {[%clk 0:00:02]} 63. Nb2 {[%clk 0:00:07.3]} 63... Bb4
{[%clk 0:00:02.4]} 64. Nc4 {[%clk 0:00:08.2]} 64... Re6 {[%clk 0:00:02.7]} 65.
g4 {[%clk 0:00:09.1]} 65... Rd6 {[%clk 0:00:03.1]} 66. Ne3 {[%clk 0:00:10]}
66... Rc6 {[%clk 0:00:03.5]} 67. Nf5+ {[%clk 0:00:10.9]} 67... Kf6 {[%clk
0:00:03.3]} 68. Ne3 {[%clk 0:00:11.2]} 68... Rc3 {[%clk 0:00:03.4]} 69. Nf5
{[%clk 0:00:12.1]} 69... Ke5 {[%clk 0:00:03.7]} 70. Nxh6 {[%clk 0:00:12.3]}
70... Kd4 {[%clk 0:00:03.9]} 71. Nf7 {[%clk 0:00:12.8]} 71... Ra3 {[%clk
0:00:04.3]} 72. Nxg5 {[%clk 0:00:13.3]} 72... Rxa4 {[%clk 0:00:04.6]} 73. Nf3+
{[%clk 0:00:13.6]} 73... Kd3 {[%clk 0:00:04.4]} 74. h6 {[%clk 0:00:14.5]} 74...
Ra2 {[%clk 0:00:04.6]} 75. h7 {[%clk 0:00:14.6]} 75... Bc3 {[%clk 0:00:04.8]}
76. g5 {[%clk 0:00:14.5]} 76... Bg7 {[%clk 0:00:04.7]} 77. g6 {[%clk 0:00:14.6]}
77... a4 {[%clk 0:00:04.6]} 78. Ng5 {[%clk 0:00:14.4]} 78... a3 {[%clk
0:00:04.9]} 79. Ne6 {[%clk 0:00:14.6]} 79... Bf6 {[%clk 0:00:04.1]} 80. g7
{[%clk 0:00:14.5]} 80... Bxg7 {[%clk 0:00:03.7]} 81. Nxg7 {[%clk 0:00:15.4]}
81... Re2 {[%clk 0:00:03.8]} 82. h8=Q {[%clk 0:00:15.2]} 82... a2 {[%clk
0:00:04.1]} 83. Qd8+ {[%clk 0:00:15]} 83... Kc3 {[%clk 0:00:03.8]} 84. Qa8
{[%clk 0:00:15]} 84... Kb2 {[%clk 0:00:03.9]} 85. Qf3 {[%clk 0:00:13.5]} 85...
a1=Q {[%clk 0:00:02.1]} 86. Qxe2+ {[%clk 0:00:13.6]} 86... Kb3 {[%clk
0:00:02.6]} 87. Qe6+ {[%clk 0:00:13.1]} 87... Kb4 {[%clk 0:00:02.3]} 88. Qb6+
{[%clk 0:00:12.6]} 88... Kc4 {[%clk 0:00:02.6]} 89. Qc6+ {[%clk 0:00:12.3]}
89... Kd3 {[%clk 0:00:03]} 90. Qf3+ {[%clk 0:00:11.2]} 90... Kc4 {[%clk
0:00:03]} 91. Qe2+ {[%clk 0:00:10.6]} 91... Kc5 {[%clk 0:00:03.1]} 92. Qe3+
{[%clk 0:00:10.3]} 92... Kd6 {[%clk 0:00:03.5]} 93. Nf5+ {[%clk 0:00:10.3]}
93... Kc6 {[%clk 0:00:03.7]} 94. Nd4+ {[%clk 0:00:09.7]} 94... Kd7 {[%clk
0:00:04]} 95. Qe6+ {[%clk 0:00:08.7]} 95... Kc7 {[%clk 0:00:03.3]} 96. Nb5+
{[%clk 0:00:08.1]} 96... Kb7 {[%clk 0:00:02.3]} 97. Nd6+ {[%clk 0:00:07.8]}
97... Kc6 {[%clk 0:00:02.4]} 98. Ne4+ {[%clk 0:00:07.2]} 98... Kc7 {[%clk
0:00:02.1]} 99. Qf7+ {[%clk 0:00:06.8]} 99... Kc6 {[%clk 0:00:02.2]} 100. Qe8+
{[%clk 0:00:04]} 100... Kd5 {[%clk 0:00:02.2]} 101. Qf7+ {[%clk 0:00:03.8]}
101... Kxe4 {[%clk 0:00:02.1]} 102. Qg6+ {[%clk 0:00:04.6]} 102... Kd5 {[%clk
0:00:02.3]} 103. Qf7+ {[%clk 0:00:04.8]} 103... Kc6 {[%clk 0:00:02.6]} 104. Qg6+
{[%clk 0:00:04.1]} 104... Kb7 {[%clk 0:00:03]} 105. Qf7+ {[%clk 0:00:04.1]}
105... Kc8 {[%clk 0:00:03.5]} 106. Qe6+ {[%clk 0:00:03.9]} 106... Kb7 {[%clk
0:00:03.9]} 107. Qd5+ {[%clk 0:00:03.9]} 107... Kc8 {[%clk 0:00:04.3]} 108. Qc6+
{[%clk 0:00:03.7]} 108... Kd8 {[%clk 0:00:04.5]} 109. Qb6+ {[%clk 0:00:02.6]}
109... Ke8 {[%clk 0:00:04.7]} 110. Qe3+ {[%clk 0:00:02.5]} 110... Kd8 {[%clk
0:00:04.5]} 111. f4 {[%clk 0:00:02.8]} 111... Kc8 {[%clk 0:00:04.8]} 112. Kf3
{[%clk 0:00:02.1]} 112... Qf6 {[%clk 0:00:04.1]} 113. Qe4 {[%clk 0:00:03]}
113... Kd8 {[%clk 0:00:04.2]} 114. f5 {[%clk 0:00:03.2]} 114... Qc3+ {[%clk
0:00:03.9]} 115. Kf4 {[%clk 0:00:03.3]} 115... Qc7+ {[%clk 0:00:04]} 116. Qe5
{[%clk 0:00:03.2]} 116... Qc4+ {[%clk 0:00:04.2]} 117. Kg5 {[%clk 0:00:03.2]}
117... Qc1+ {[%clk 0:00:03.2]} 118. Qf4 {[%clk 0:00:03]} 118... Qg1+ {[%clk
0:00:03.1]} 119. Qg4 {[%clk 0:00:02.5]} 119... Qe3+ {[%clk 0:00:03.2]} 120. Kh5
{[%clk 0:00:02.6]} 120... Ke8 {[%clk 0:00:02.2]} 121. Qg5 {[%clk 0:00:02.5]}
121... Qxg5+ {[%clk 0:00:01.6]} 122. Kxg5 {[%clk 0:00:02.4]} 1-0

[Event "Betsys MČR v online bleskovém šachu 2021"]
[Site "Chess.com"]
[Date "2021.04.17"]
[Round "12"]
[White "Jeff_CZE"]
[Black "sachistamartin"]
[Result "1-0"]
[WhiteElo "1804"]
[BlackElo "1428"]
[TimeControl "180+1"]
[EndTime "10:54:44 PDT"]
[Termination "Uživatel Jeff_CZE zvítězil matem"]

1. d4 {[%clk 0:03:00.9]} 1... d5 {[%clk 0:02:57.2]} 2. c4 {[%clk 0:03:01.3]}
2... Nf6 {[%clk 0:02:56.5]} 3. Nf3 {[%clk 0:03:01.7]} 3... Nc6 {[%clk
0:02:55.9]} 4. g3 {[%clk 0:03:02.3]} 4... e6 {[%clk 0:02:55.8]} 5. Bg2 {[%clk
0:03:02.6]} 5... Bb4+ {[%clk 0:02:55.3]} 6. Bd2 {[%clk 0:03:02.1]} 6... Bxd2+
{[%clk 0:02:54.3]} 7. Nbxd2 {[%clk 0:03:03]} 7... dxc4 {[%clk 0:02:52.5]} 8.
Nxc4 {[%clk 0:03:01.8]} 8... Bd7 {[%clk 0:02:51]} 9. O-O {[%clk 0:03:01.2]} 9...
Qe7 {[%clk 0:02:49.8]} 10. Rc1 {[%clk 0:03:00.1]} 10... O-O-O {[%clk 0:02:49.2]}
11. Qc2 {[%clk 0:02:59.4]} 11... h5 {[%clk 0:02:47.1]} 12. Nce5 {[%clk
0:02:59.1]} 12... Nxe5 {[%clk 0:02:45.6]} 13. Qxc7# {[%clk 0:02:57.4]} 1-0

[Event "Betsys MČR v online bleskovém šachu 2021"]
[Site "Chess.com"]
[Date "2021.04.17"]
[Round "12"]
[White "Hroch-hroch"]
[Black "kol340"]
[Result "1-0"]
[WhiteElo "2236"]
[BlackElo "1886"]
[TimeControl "180+1"]
[EndTime "10:55:38 PDT"]
[Termination "Uživatel Hroch-hroch zvítězil po vzdání soupeře"]

1. e4 {[%clk 0:03:00.9]} 1... c6 {[%clk 0:02:39.7]} 2. d4 {[%clk 0:02:59.4]}
2... d5 {[%clk 0:02:31.3]} 3. e5 {[%clk 0:02:59.6]} 3... Bf5 {[%clk 0:02:30.2]}
4. g4 {[%clk 0:02:59.4]} 4... Bg6 {[%clk 0:02:29]} 5. h4 {[%clk 0:02:58.9]} 5...
h5 {[%clk 0:02:26.4]} 6. e6 {[%clk 0:02:59]} 6... fxe6 {[%clk 0:02:19.3]} 7. Bd3
{[%clk 0:02:58.4]} 7... Bxd3 {[%clk 0:02:18.1]} 8. Qxd3 {[%clk 0:02:58.3]} 8...
Kd7 {[%clk 0:02:18.6]} 9. Nf3 {[%clk 0:02:52.5]} 9... Na6 {[%clk 0:02:17.6]} 10.
Ne5+ {[%clk 0:02:50.2]} 10... Kc7 {[%clk 0:02:16.6]} 11. Nf7 {[%clk 0:02:47.3]}
11... Qd6 {[%clk 0:02:13.6]} 12. Nxd6 {[%clk 0:02:45.2]} 1-0

[Event "Betsys MČR v online bleskovém šachu 2021"]
[Site "Chess.com"]
[Date "2021.04.17"]
[Round "12"]
[White "clarissamcclellan"]
[Black "ReceptiveYoyo"]
[Result "1-0"]
[WhiteElo "1842"]
[BlackElo "1376"]
[TimeControl "180+1"]
[EndTime "10:55:43 PDT"]
[Termination "Uživatel clarissamcclellan zvítězil po vzdání soupeře"]

1. d4 {[%clk 0:03:00.9]} 1... d5 {[%clk 0:02:58.3]} 2. c4 {[%clk 0:03:00.8]}
2... e6 {[%clk 0:02:58.4]} 3. Nf3 {[%clk 0:03:00.3]} 3... Nf6 {[%clk 0:02:58.9]}
4. g3 {[%clk 0:03:00.6]} 4... Bd6 {[%clk 0:02:59.4]} 5. Bg2 {[%clk 0:03:00.7]}
5... Nc6 {[%clk 0:02:59.9]} 6. O-O {[%clk 0:02:59]} 6... e5 {[%clk 0:02:59.9]}
7. dxe5 {[%clk 0:02:55.2]} 7... Nxe5 {[%clk 0:03:00.8]} 8. cxd5 {[%clk
0:02:54.1]} 8... Nxf3+ {[%clk 0:02:58.7]} 9. Bxf3 {[%clk 0:02:54.1]} 9... O-O
{[%clk 0:02:49.3]} 10. Nc3 {[%clk 0:02:52.1]} 10... Bb4 {[%clk 0:02:48]} 11. e4
{[%clk 0:02:50.3]} 11... Bg4 {[%clk 0:02:47.3]} 12. Bxg4 {[%clk 0:02:48.9]}
12... Bxc3 {[%clk 0:02:47.2]} 13. bxc3 {[%clk 0:02:48.1]} 13... Nxe4 {[%clk
0:02:47]} 14. Bb2 {[%clk 0:02:42.3]} 14... f5 {[%clk 0:02:40]} 15. Bf3 {[%clk
0:02:41]} 15... Nf6 {[%clk 0:02:39]} 16. Qd3 {[%clk 0:02:37.6]} 16... g6 {[%clk
0:02:37.5]} 17. Rad1 {[%clk 0:02:36.4]} 17... Qd7 {[%clk 0:02:33.8]} 18. Rfe1
{[%clk 0:02:36]} 18... Rfd8 {[%clk 0:02:33.9]} 19. c4 {[%clk 0:02:35]} 19... c6
{[%clk 0:02:31.1]} 20. Bxf6 {[%clk 0:02:33.6]} 1-0